Cogmind - Beta 14 @@@ ROGUE MODE // 2025.03.16 @ 17:59:20 Player: potator Result: Destroyed by G-47 Trooper with Particle Gun Performance ------------- Evolutions (2) 1000 Regions Visited (4) 800 Robots Destroyed (52) 260 Value Destroyed (1401) 1401 Prototype IDs (1) 20 Alien Tech Used (0) 0 Bonus (0) 0 TOTAL SCORE: 3481 Bonus ------- None Cogmind --------- Core Integrity 0/550 Matter 45/300 Energy 35/100 System Corruption 0% Temperature Cool (53) Movement Core (300) Ox5 Location -8/Materials Parts ------- > --- POWER (2) -------- (None) > --- PROPULSION (2) --- (None) > --- UTILITY (4) ------ Medium Storage Unit Structural Scanner Improved Targeting Computer > --- WEAPON (3) ------- Medium Laser Heavy Particle Gun > --- INVENTORY (10) --- Signal Interpreter Core Analyzer ECM Suite Hacking Suite Shotgun Improved Datajack Peak State ------------ > --- POWER ------------ Light Nuclear Core Hybrid Deuterium Engine > --- PROPULSION ------- Improved Carbon-fiber Leg Improved Carbon-fiber Leg > --- UTILITY ---------- Medium Storage Unit Improved Targeting Computer Improved Targeting Computer Recoil Stabilizer > --- WEAPON ----------- Gauss Rifle Gauss Rifle Gauss Rifle > --- INVENTORY -------- Structural Scanner Signal Interpreter Core Analyzer ECM Suite Hacking Suite Medium Laser Heavy Particle Gun Ion Cannon Shotgun [Rating: 37] Favorites ----------- Power Light Nuclear Core Engine Improved Ion Engine Power Core Light Nuclear Core Propulsion Aluminum Leg Treads Light Treads Leg Aluminum Leg Hover Unit Hover Unit Utility Targeting Computer Device Seismic Detector Storage Medium Storage Unit Processor Targeting Computer Weapon Assault Rifle Energy Gun Medium Laser Energy Cannon Ion Cannon Ballistic Gun Assault Rifle Ballistic Cannon Improved Light Cannon Launcher Mini Grenade Launcher Build | -11 -10 -10 -9 -8 ------- Run | Yrd Mat Min Mat Mat Slots Evolved 4 | . . . 2 2 Power 1 | . . . . 1 Propulsion . | . . . . . Utility 2 | . . . 2 . Weapon 1 | . . . . 1 Parts Attached 72 | 6 17 8 20 21 Power 6 | 1 1 1 . 3 Engine 4 | 1 . 1 . 2 Core 2 | . 1 . . 1 Reactor . | . . . . . Propulsion 13 | 2 2 4 2 3 Treads 2 | . . 2 . . Leg 10 | 2 2 2 1 3 Wheel . | . . . . . Hover 1 | . . . 1 . Flight . | . . . . . Utility 19 | 1 3 . 10 5 Device 12 | . 2 . 5 5 Storage 2 | 1 . . 1 . Processor 5 | . 1 . 4 . Hackware . | . . . . . Protection . | . . . . . Artifact . | . . . . . Weapon 34 | 2 11 3 8 10 Energy Gun 7 | 1 2 . . 4 Energy Cannon 1 | . . . . 1 Ballistic Gun 19 | 1 6 3 4 5 Ballistic Cannon 2 | . . . 2 . Launcher 5 | . 3 . 2 . Special Weapon . | . . . . . Impact Weapon . | . . . . . Slashing Weapon . | . . . . . Piercing Weapon . | . . . . . Special Melee Weapon . | . . . . . Unidentified Prototypes 1 | . . . . 1 Parts Lost 30 | . 3 3 9 15 Power 5 | . . 1 1 3 Propulsion 9 | . 2 1 4 2 Utility 5 | . . . 2 3 Weapon 11 | . 1 1 2 7 Highest Loss Streak 10 | . 3 2 6 10 To Critical Strikes . | . . . . . Average Slot Usage (%) 91 | . 94 98 92 77 Engine 6 | . 4 5 10 5 Core 6 | . 9 7 . 5 Leg 17 | . 24 22 10 10 Hover 1 | . . . 5 . Device 10 | . 11 14 10 6 Storage 5 | . 2 . 11 9 Processor 16 | . 12 14 22 18 Energy Gun 1 | . 2 . . 1 Ballistic Gun 22 | . 25 28 16 18 Ballistic Cannon 1 | . . . 4 1 Peak Build Rating 37 | 6 9 12 15 37 Average Rating 12 | 4 8 9 12 23 On Entrance 6 | . 6 9 12 7 Naked Turns . | . . . . . Heaviest Build 36 | 13 14 12 25 36 Greatest Support 40 | 20 20 40 30 36 Greatest Overweight (x) 7 | . . 1 7 7 Average Overweight (x) . | . . . 1 1 Largest Inventory Capacity 10 | 8 8 5 10 10 Average Capacity 7 | 6 5 5 10 10 Most Carried 10 | 4 5 5 9 10 Average Carried 5 | . 3 4 6 6 Final Capacity 10 | 8 5 5 10 10 Final Carried 8 | . 5 5 8 6 Class Distribution -------------------- 74% | Mutant 11% | Scavenger-Mutant 8% | Scavenger-Gunner 5% | Gunner Dominant Class ---------------- Mutant | -10/Materials Mutant | -10/Mines Mutant | -9/Materials Scavenger-Gunner | -8/Materials Resources | -11 -10 -10 -9 -8 ----------- Run | Yrd Mat Min Mat Mat Matter Collected 1446 | 204 361 212 206 463 Remotely . | . . . . . Salvage Created 1457 | . 475 156 270 556 Parts 124 | . 40 9 34 41 Haulers Intercepted . | . . . . . Recyclers Shooed . | . . . . . Parts Field Recycled . | . . . . . Retrieved Matter . | . . . . . Parts Self-Destructed . | . . . . . Prevented . | . . . . . Kills | -11 -10 -10 -9 -8 ------- Run | Yrd Mat Min Mat Mat Combat Hostiles Destroyed 40 | . 18 5 6 11 Guns 33 | . 13 5 4 11 AOE 7 | . 5 . 2 . Classes Destroyed 12 | . 5 2 2 3 Worker 1 | . . . 1 . Builder 5 | . 1 . 3 1 Tunneler 1 | . 1 . . . Operator 3 | . . . 2 1 Watcher 5 | . 3 . 1 1 Swarmer 12 | . 9 . . 3 Grunt 13 | . 9 . 3 1 Duelist 1 | . . . . 1 Sentry 7 | . . 2 3 2 Specialist 2 | . . . . 2 Hunter 2 | . . . . 2 Assembled 3 | . . 3 . . Best Kill Streak 7 | . 4 1 5 7 Combat Bots Only 4 | . 3 1 2 4 Max Kills in Single Turn 2 | . 2 1 2 2 Gunslinging 1 | . . . . 1 Exploded 2 | . 2 . 1 . Melee . | . . . . . Uniques/NPCs Destroyed . | . . . . . Combat | -11 -10 -10 -9 -8 -------- Run | Yrd Mat Min Mat Mat Hostile Shots Fired 482 | . 112 29 102 239 Missed 165 | . 42 5 36 82 Damage Taken 3993 | . 730 355 908 2000 Core 961 | . 112 76 208 565 Absorbed by Shields . | . . . . . Core Remaining (%) 57 | 100 . 24 48 . Volleys Fired 151 | . 59 17 36 39 Largest 3 | . 2 2 2 3 Hottest 133 | . 70 40 62 133 Shots Fired 319 | . 117 33 64 105 Gun 287 | . 112 33 43 99 Cannon 15 | . . . 9 6 Launcher 17 | . 5 . 12 . Special . | . . . . . Kinetic 261 | . 90 33 52 86 Thermal 41 | . 22 . . 19 Explosive 17 | . 5 . 12 . Electromagnetic . | . . . . . Robot Hit Streak 23 | . 23 10 15 17 Robot Miss Streak 6 | . 4 3 1 6 Penetration Max 1 | . . . . 1 Secondary Targets 2 | . . . . 2 Max Gunslinging Chain 1 | . . . . 1 Shots Hit Robots 205 | . 81 24 47 53 Core Hits 91 | . 35 8 26 22 Critical Kills 1 | . . 1 . . Critical Parts Destroyed 2 | . 1 . . 1 Critical Strikes 5 | . 3 1 . 1 Burn 2 | . 2 . . . Destroy 3 | . 1 1 . 1 Melee Attacks . | . . . . . Impact . | . . . . . Slashing . | . . . . . Piercing . | . . . . . Sneak Attacks . | . . . . . Combat Hostiles . | . . . . . Follow-up Attacks . | . . . . . Damage Inflicted 3911 | . 1329 287 1055 1240 Guns 2692 | . 770 287 466 1169 Cannons 91 | . . . 20 71 Explosions 1128 | . 559 . 569 . Melee . | . . . . . Ramming . | . . . . . Kinetic 2292 | . 556 287 486 963 Thermal 573 | . 296 . . 277 Explosive 1046 | . 477 . 569 . Electromagnetic . | . . . . . Impact . | . . . . . Slashing . | . . . . . Piercing . | . . . . . Highest Corruption . | . . . . . Average Corruption . | . . . . . Corruption Purged . | . . . . . Corruption Blocked . | . . . . . Overload Shots . | . . . . . Overflow Damage 42 | . 42 . . . Projectiles . | . . . . . Explosions 42 | . 42 . . . Melee . | . . . . . Knockbacks . | . . . . . Impact . | . . . . . Kinetic . | . . . . . Secondary . | . . . . . Self-Inflicted Damage 55 | . 35 . 20 . Shots 3 | . 1 . 2 . Rammed . | . . . . . Targets Rammed . | . . . . . Kicked . | . . . . . Crushed . | . . . . . Highest Temperature 240 | . 120 14 3 240 Average Temperature 52 | . 26 8 2 78 Received Heat Transfer 1286 | . 249 119 405 513 Siege Activations . | . . . . . Robots Corrupted . | . . . . . Combat Hostiles . | . . . . . Parts Fried . | . . . . . Impact Corruptions . | . . . . . Robots Melted . | . . . . . Combat Hostiles . | . . . . . Parts Melted 2 | . 1 . . 1 Heat Transferred 1419 | . 827 . . 592 Parts Sabotaged . | . . . . . Parts Stolen . | . . . . . Parts Stripped . | . . . . . Power Chain Reactions . | . . . . . Alert | -11 -10 -10 -9 -8 ------- Run | Yrd Mat Min Mat Mat Peak Influence 392 | . 392 60 258 260 Initial 50 | . . 50 . . Average 112 | . 186 31 94 59 Maximum Alert Level 1 | . 1 . 1 1 Low Security (%) 77 | 100 59 100 80 90 Level 1 22 | . 40 . 19 9 Level 2 . | . . . . . Level 3 . | . . . . . Level 4 . | . . . . . Level 5 . | . . . . . High Security . | . . . . . Max Security . | . . . . . Squads Dispatched 8 | . 3 . 3 2 Investigation 3 | . 1 . 1 1 Extermination . | . . . . . Reinforcement 5 | . 2 . 2 1 Assault . | . . . . . Garrison . | . . . . . Intercept . | . . . . . Searches Triggered . | . . . . . Construction Impeded 1 | . . . 1 . Haulers Reinforced . | . . . . . Active Scanning Responses . | . . . . . Cargo Convoy Interrupts . | . . . . . Stealth | -11 -10 -10 -9 -8 --------- Run | Yrd Mat Min Mat Mat Distress Signals 3 | . 2 . . 1 Communications Jammed . | . . . . . Distress Signals . | . . . . . Times Spotted 74 | . 27 8 12 27 Peak Tracking Total 10 | . 4 2 4 10 Tactical Retreats 4 | . 2 2 . . Traps | -11 -10 -10 -9 -8 ------- Run | Yrd Mat Min Mat Mat Traps Triggered . | . . . . . Indirectly . | . . . . . Trap Hack Attempts . | . . . . . Triggered . | . . . . . Disarmed . | . . . . . Reprogrammed . | . . . . . Reused 1 | . . 1 . . Traps Extracted . | . . . . . Installed 1 | . . 1 . . Triggered . | . . . . . Most Traps Carried 1 | . . 1 . . Machines | -11 -10 -10 -9 -8 ---------- Run | Yrd Mat Min Mat Mat Machines Disabled 6 | . 3 . . 3 Max in Single Turn 3 | . 3 . . 1 Machines Repaired . | . . . . . Machines Dismantled . | . . . . . Machines Sabotaged . | . . . . . Overloaded Fab Kills . | . . . . . Hacking | -11 -10 -10 -9 -8 --------- Run | Yrd Mat Min Mat Mat Machines Accessed 5 | . 1 . 2 2 Terminals 4 | . 1 . 1 2 Fabricators . | . . . . . Repair Stations 1 | . . . 1 . Recycling Units . | . . . . . Scanalyzers . | . . . . . Garrison Access . | . . . . . Total Hacks 18 | . 6 . 7 5 Successful 7 | . 1 . 3 3 Failed 11 | . 5 . 4 2 Catastrophic 2 | . . . 1 1 Database Lockouts . | . . . . . Manual . | . . . . . Terminals 15 | . 6 . 4 5 Fabricators . | . . . . . Repair Stations 3 | . . . 3 . Recycling Units . | . . . . . Scanalyzers . | . . . . . Garrison Access . | . . . . . Terminal Hacks 6 | . 1 . 2 3 Alert Level 1 | . . . . 1 Dispatch Records 1 | . . . . 1 Security Status 1 | . . . 1 . Registered Components 1 | . . . . 1 Zone Layout 2 | . 1 . 1 . Fabricator Hacks . | . . . . . Repair Station Hacks 1 | . . . 1 . Scan Component 1 | . . . 1 . Recycling Unit Hacks . | . . . . . Scanalyzer . | . . . . . Garrison Access Hacks . | . . . . . Unauthorized Hacks . | . . . . . Terminals . | . . . . . Fabricators . | . . . . . Repair Stations . | . . . . . Recycling Units . | . . . . . Scanalyzers . | . . . . . Garrison Access . | . . . . . Data Cores Recovered 1 | . . . 1 . Used . | . . . . . Hacking Detections 3 | . 1 . 1 1 Full Trace Events 3 | . 1 . 1 1 Feedback Events . | . . . . . Feedback Blocked . | . . . . . Robot Schematics Acquired . | . . . . . Robots Built . | . . . . . Authchips . | . . . . . Time . | . . . . . Total Robot Build Rating . | . . . . . Part Schematics Acquired . | . . . . . Parts Built . | . . . . . Authchips . | . . . . . Time . | . . . . . Total Part Build Rating . | . . . . . Parts Repaired . | . . . . . Time . | . . . . . Parts Recycled . | . . . . . Recycled Matter . | . . . . . Retrieved Matter . | . . . . . Retrieved Components . | . . . . . Parts Scanalyzed . | . . . . . Part Schematics Acquired . | . . . . . Parts Damaged . | . . . . . Bothacking | -11 -10 -10 -9 -8 ------------ Run | Yrd Mat Min Mat Mat Used RIF Installer . | . . . . . Robots Hacked . | . . . . . Non-combat . | . . . . . Combat . | . . . . . Robot Hacks Applied . | . . . . . Relay Couplers Released . | . . . . . Fabnet Peak Effective % . | . . . . . Robots Rewired . | . . . . . Allies Hacked . | . . . . . Hacks Repelled . | . . . . . Allies | -11 -10 -10 -9 -8 -------- Run | Yrd Mat Min Mat Mat Total Allies 2 | . . 2 . . Largest Group 2 | . . 2 . . Highest-Rated Group 39 | . . 39 . . Highest-Rated Ally 31 | . . 31 . . Total Orders . | . . . . . Ally Attacks 14 | . . 14 . . Total Damage 212 | . . 212 . . Kills 5 | . . 5 . . Allies Corrupted . | . . . . . Allies Melted . | . . . . . Intel | -11 -10 -10 -9 -8 ------- Run | Yrd Mat Min Mat Mat Robot Analysis Total . | . . . . . Derelict Logs Recovered . | . . . . . Drone Launches . | . . . . . Drone Recoveries . | . . . . . Exploration | -11 -10 -10 -9 -8 ------------- Run | Yrd Mat Min Mat Mat Turns Passed 3648 | 59 1421 573 925 670 Spaces Moved 1851 | 42 875 310 337 287 Core 117 | 9 . . 35 73 Treads 64 | . . 64 . . Legs 1639 | 33 875 246 271 214 Wheels . | . . . . . Hover 31 | . . . 31 . Flight . | . . . . . Fastest Speed 50 | 50 120 120 120 120 Average Speed 148 | 105 120 128 219 177 Slowest Speed 400 | 120 120 190 400 400 Overloaded Moves . | . . . . . Propulsion Burnouts . | . . . . . Robots Hopped . | . . . . . Cave-ins Triggered . | . . . . . Exploration Rate (%) 41 | 3 98 46 31 27 Regions Visited 4 Branch Regions 1 Pre-discovered Areas . | . . . . . Known Exits Taken 1 | . . . 1 . Unknown Exits Taken 3 | 1 1 1 . . Scrap Searched . | . . . . . Spaces Dug 1 | . . . 1 . Terrain Destroyed 112 | . 49 . 63 . Melee . | . . . . . Projectile 2 | . . . 2 . AOE 110 | . 49 . 61 . Terrain Rammed . | . . . . . Walls Destroyed . | . . . . . Machines Disabled . | . . . . . Actions | -11 -10 -10 -9 -8 --------- Run | Yrd Mat Min Mat Mat Total 2472 | 57 1141 455 453 366 Wait 329 | 4 172 103 47 3 Move 1847 | 41 874 309 336 287 Hop . | . . . . . Pick Up 55 | 6 12 9 13 15 Fast Attach 1 | . 1 . . . Attach 34 | 6 3 3 6 16 Detach . | . . . . . Swap 37 | . 13 5 14 5 Drop 17 | . 7 8 1 1 Fire 151 | . 59 17 36 39 Melee . | . . . . . Ram . | . . . . . Kick . | . . . . . Crush . | . . . . . Escape Stasis . | . . . . . Rewire . | . . . . . Trap 1 | . . 1 . . Miscellaneous . | . . . . . Route ------- -11/Scrapyard -10/Materials (discovered 5 exits: *Mat x3 / [*Min x2]) -10/Mines -9/Materials -8/Materials History --------- Turn | Location | Event 5 | -11/Scrapyard | Discovered new exit (range 15) 60 | -11/Scrapyard | Entered Materials 236 | -10/Materials | Discovered new exit (range 9) 318 | -10/Materials | Build established: Mutant 488 | -10/Materials | Discovered new exit (range 10) 506 | -10/Materials | Lost 3 parts (2n1w) 675 | -10/Materials | Discovered new exit (range 16) 745 | -10/Materials | Discovered new exit (range 9) 1077 | -10/Materials | Discovered new exit (range 10) 1481 | -10/Materials | Entered Mines 1482 | -10/Mines | Assembled infested the area 1538 | -10/Mines | Discovered new exit (range 15) 1578 | -10/Mines | Found a hidden stash of uninstalled traps 1801 | -10/Mines | Core integrity fell below 50% 2054 | -10/Mines | Entered Materials 2054 | -9/Materials | Evolved 2 slots: Utility x2 2766 | -9/Materials | Discovered new exit (range 4) 2777 | -9/Materials | Identified exit to Materials 2817 | -9/Materials | Build established: Scavenger-Mutant 2975 | -9/Materials | Core integrity fell below 50% 2979 | -9/Materials | Entered another Materials area 2979 | -8/Materials | Evolved 2 slots: Power x1, Weapon x1 3004 | -8/Materials | Lost 6 parts (1p2n1u2w) 3199 | -8/Materials | Lost 3 parts (1u2w) 3608 | -8/Materials | Build established: Scavenger-Gunner 3624 | -8/Materials | Core integrity fell below 50% 3645 | -8/Materials | Core integrity fell below 20% 3649 | -8/Materials | Destroyed by G-47 Trooper with Particle Gun Last Messages --------------- R-06 Scavenger collects Flight Unit. Slug penetrates Wall. Slug penetrates Y-45 Defender. R-06 Scavenger collects Core Shielding. Gauss Rifle destroyed. Imp. Carbon-fiber Leg destroyed. Hyb. Deuterium Engine destroyed. Gauss Rifle destroyed. Lgt. Nuclear Core destroyed. Atomic Centrifuge disabled. K-01 Serf collects debris. Imp. Carbon-fiber Leg destroyed. Critical hit (Burn: +37). K-01 Serf collects debris. Ion Cannon destroyed. K-01 Serf collects debris. Critical hit (Burn: +37). K-01 Serf collects debris. R-06 Scavenger collects Imp. Aluminum Leg. Imp. Targeting Computer destroyed. Map ----- +----------------------------------------------------+ | ?????????????????????????????????????????????????? | | ?????????????????????????????????????????????????? | | ?????????????????????????????????????????????????? | | ?????????????????????????????????????????????????? | | ?????????????????????????????????????????????????? | | ?????????????????????????????????????????????????? | | ??????????????????????????????????????? ?????????? | | ??????????????????????????????????????? ?????????? | | ??????????????????????????????????????? ?????????? | | ??????????????????????????????????????# #????????? | | ??????????????????????????????????????# #????????? | | ??????????????????????????????????????# #????????? | | ????????????????????????????????????### ###??????? | | ????????????????????????????????????# #??????? | | ????????????????????????????????????# #??????? | | ????????????????????????????????????+ #??????? | | ????????????????????????????????????# #??????? | | ????????????????????????????????????# #??????? | | ????????????????????????????????????## ##??????? | | ???????????????????????????########### %[########? | | ???????????????????????????# # = # #? | | ???????????????????????????# """"" + + #? | | ???????????????????????????# ""T"" # # #? | | ???????????????? ### # # """ #? | | ?????????????######################### % # """ =#? | | ?????????????## @ g r =# """ #? | | ?????????????## ^ ^ Yg */########? | | ?????????????"" Y * # #? | | ?????????????"Y ^ g Y / + """ ]#? | | ????????????#"" g g % = # """ #? | | ????????????### "" """ "" ! [ # ?"" [#? | | ????????????### """ """ " " # ??? #? | | ????????????? """ """ ""[% " ! # ??????? | | ????????????? ? w k ##??????# | | ????????????? ???? a ######### | | ??????????????????+######/### ###+############ | | ?????????????????? # # # + | | ???????????????????????????"# # """ #### | | ???????????????????????????"# #""""" #### | | ???????????????????????????"# #""""" ##?# | | ??????????????????????????? # #""""" ##?# | | ??????????????????????????? # ??? # """ ##?# | | ?[??????????????????????????????? # ##?# | | ??????????????????????????????????################ | | ?????????????????????????????????? | | ??????????????????????????????????????????? | | ??????????????????????????????????????????? | | ????????????????????????????????????????????###### | | ?????????????????????????????????????????????????? | | ?????????????????????????????????????????????????? | +----------------------------------------------------+ Best States ------------- Heat Dissipation 31 Energy Generation 19 Energy Capacity 860 Matter Stores 300 Matter Capacity 300 Sight Range 16 Robot Scan Range 14 Terrain Scan Density 10 ECM Strength 1 Evasion (%) 55 Targeting Accuracy 12 Recoil Reduction 4 Item Schematics ----------------- None Robot Schematics ------------------ None Fabricated ------------ Nothing Alien Tech Used ----------------- None Achievements -------------- I Survived The Infestation Please Form A Line Challenges ------------ None Game ------ Seed TitaniumPoweredScanner Manual? 0 Play Time 00:35:07 Cumulative 9.7 hours Start 2025.03.16 @ 17:25:12 End 2025.03.16 @ 17:59:20 Sessions 1 Manual Loads 0 Difficulty Rogue Special Mode None Game No. 19 Rogue 19 Adventurer 0 Explorer 0 Win Type - Total 0 Types 0/0/0/0/0/0/0/0/0 Lore% 5 Gallery% 13 Achievement% 14 Wizard Run 0 Options --------- Layout 1 ASCII 0 Keyboard 0 Movement Mouse Keybinds 0 Fullscreen 2 Font 24/Smallcaps Map View 50x35 Zoom Use 0% Tactical HUD 0 Map Filters NONE Filters NONE Steam 1 RUN: f72026dc-cbc5-4992-b865-1f8e60938761